{"text_format":"1","workbook":"xlsx","n_sheets":20,"sheets":["SOMMAIRE","Fiche1-Niv1","Aide1","Fiche2 - Niv1","Aide2","Fiche3 -Niv1","Aide3","Fiche1 - Niv2","Aide4","Fiche2 Niv2","Aide5","Fiche3 - Niv2","Aide6","Fiche1 - Niv3","Aide7","Fiche2-Niv3","Aide8","Fiche3 - Niv3","Aide9","FLASH"],"not_rendered":{"charts":0,"images":5,"macros":1,"external_links":0,"defined_names":0,"comments":0,"pivot_tables":0},"unopened":[],"bounds":{"document_bytes":16777216,"sheet_cells":100000,"rows_first":2000,"rows_last":500,"rows_between":2000,"halvings":0,"cell_chars":16384,"cell_head_chars":4096},"cells_cut":0,"cells_raw":0,"read":"whole","date_system":"1900"}

{"sheet":"SOMMAIRE","index":0,"n_rows":21,"n_cols":7,"rows_kept":21,"cut":false,"hidden":false,"merged":[[2,0,3,1],[11,0,12,1],[20,0,21,1],[11,6,12,7]]}
[]
[]
["Niveau 1"]
[]
[]
[]
[]
[]
[]
[]
[]
["Niveau 2",null,null,null,null,null,"Questions flash"]
[]
[]
[]
[]
[]
[]
[]
[]
["Niveau 3"]

{"sheet":"Fiche1-Niv1","index":1,"n_rows":9,"n_cols":4,"rows_kept":9,"cut":false,"hidden":false,"merged":[[0,2,1,2],[0,1,1,1]]}
[null,"Mes réponses","Vos réponses"]
[]
["Question 1",null,{"$f":"B3","v":0},{"$f":"IF(C3=FALSE,\"bonne réponse\",\"mauvaise réponse\")","v":"mauvaise réponse"}]
["Question 2",null,0,{"$f":"IF(C4=30,\"bonne réponse\",\"mauvaise réponse\")","v":"mauvaise réponse"}]
["Question 3",null,0,{"$f":"IF(C5=3,\"bonne réponse\",\"mauvaise réponse\")","v":"mauvaise réponse"}]
["Question 4",null,0,{"$f":"IF(C6=72000,\"bonne réponse\",\"mauvaise réponse\")","v":"mauvaise réponse"}]
["Question 5/a",null,0,{"$f":"IF(C7=14.31,\"bonne réponse\",\"mauvaise réponse\")","v":"mauvaise réponse"}]
["Question 5/b",null,0,{"$f":"IF(C8=30.21,\"bonne réponse\",\"mauvaise réponse\")","v":"mauvaise réponse"}]
["Question 6",null,0,{"$f":"IF(C9=150,\"bonne réponse\",\"mauvaise réponse\")","v":"mauvaise réponse"}]

{"sheet":"Aide1","index":2,"n_rows":0,"n_cols":0,"rows_kept":0,"cut":false,"hidden":false,"merged":[]}

{"sheet":"Fiche2 - Niv1","index":3,"n_rows":9,"n_cols":4,"rows_kept":9,"cut":false,"hidden":false,"merged":[[0,1,1,1],[0,2,1,2]]}
[null,"Mes réponses","Vos réponses"]
[]
["Question 1",null,{"$f":"B3","v":0},{"$f":"IF(C3=TRUE,\"bonne réponse\",\"mauvaise réponse\")","v":"mauvaise réponse"}]
["Question 2",null,0,{"$f":"IF(C4=10,\"bonne réponse\",\"mauvaise réponse\")","v":"mauvaise réponse"}]
["Question 3",null,0,{"$f":"IF(C5=3,\"bonne réponse\",\"mauvaise réponse\")","v":"mauvaise réponse"}]
["Question 4/a",null,0,{"$f":"IF(C6=61.5,\"bonne réponse\",\"mauvaise réponse\")","v":"mauvaise réponse"}]
["Question 4/b",null,0,{"$f":"IF(C7=30.75,\"bonne réponse\",\"mauvaise réponse\")","v":"mauvaise réponse"}]
["Question 5",null,0,{"$f":"IF(C8=60,\"bonne réponse\",\"mauvaise réponse\")","v":"mauvaise réponse"}]
["Question 6",null,0,{"$f":"IF(C9=\"A\",\"bonne réponse\",\"mauvaise réponse\")","v":"mauvaise réponse"}]

{"sheet":"Aide2","index":4,"n_rows":0,"n_cols":0,"rows_kept":0,"cut":false,"hidden":false,"merged":[]}

{"sheet":"Fiche3 -Niv1","index":5,"n_rows":12,"n_cols":4,"rows_kept":12,"cut":false,"hidden":false,"merged":[[0,1,1,1],[0,2,1,2]]}
[null,"Mes réponses","Vos réponses"]
[]
["Question 1",null,{"$f":"B3","v":0},{"$f":"IF(C3=3,\"bonne réponse\",\"mauvaise réponse\")","v":"mauvaise réponse"}]
["Question 2",null,0,{"$f":"IF(C4=3,\"bonne réponse\",\"mauvaise réponse\")","v":"mauvaise réponse"}]
["Question 3",null,0,"mauvaise réponse"]
["Question 4",null,0,"mauvaise réponse"]
["Question 5",null,0,"mauvaise réponse"]
["Question 6",null,0,"mauvaise réponse"]
["Question 7",null,0,"mauvaise réponse"]
["Question 8",null,0,"mauvaise réponse"]
["Question 9",null,0,"mauvaise réponse"]
["Question 10",null,0,"mauvaise réponse"]

{"sheet":"Aide3","index":6,"n_rows":0,"n_cols":0,"rows_kept":0,"cut":false,"hidden":false,"merged":[]}

{"sheet":"Fiche1 - Niv2","index":7,"n_rows":11,"n_cols":4,"rows_kept":11,"cut":false,"hidden":false,"merged":[[0,1,1,1],[0,2,1,2]]}
[null,"Mes réponses","Vos réponses"]
[]
["Question 1",null,{"$f":"B3","v":0},{"$f":"IF(C3=550,\"bonne réponse\",\"mauvaise réponse\")","v":"mauvaise réponse"}]
["Question 2",null,0,{"$f":"IF(C4=11,\"bonne réponse\",\"mauvaise réponse\")","v":"mauvaise réponse"}]
["Question 3",null,0,{"$f":"IF(C5=6,\"bonne réponse\",\"mauvaise réponse\")","v":"mauvaise réponse"}]
["Question 4/a",null,0,{"$f":"IF(C6=500,\"bonne réponse\",\"mauvaise réponse\")","v":"mauvaise réponse"}]
["Question 4/b",null,0,{"$f":"IF(C7=1650,\"bonne réponse\",\"mauvaise réponse\")","v":"mauvaise réponse"}]
["Question 4/c",null,0,{"$f":"IF(C8=6500,\"bonne réponse\",\"mauvaise réponse\")","v":"mauvaise réponse"}]
["Question 5/a",null,0,{"$f":"IF(C9=440,\"bonne réponse\",\"mauvaise réponse\")","v":"mauvaise réponse"}]
["Question 5/b",null,0,{"$f":"IF(C10=1020,\"bonne réponse\",\"mauvaise réponse\")","v":"mauvaise réponse"}]
["Question 5/c",null,0,{"$f":"IF(C11=540,\"bonne réponse\",\"mauvaise réponse\")","v":"mauvaise réponse"}]

{"sheet":"Aide4","index":8,"n_rows":0,"n_cols":0,"rows_kept":0,"cut":false,"hidden":false,"merged":[]}

{"sheet":"Fiche2 Niv2","index":9,"n_rows":11,"n_cols":4,"rows_kept":11,"cut":false,"hidden":false,"merged":[[0,1,1,1],[0,2,1,2]]}
[null,"Mes réponses","Vos réponses"]
[]
["Question 1",null,{"$f":"B3","v":0},{"$f":"IF(C3=880,\"bonne réponse\",\"mauvaise réponse\")","v":"mauvaise réponse"}]
["Question 2",null,0,{"$f":"IF(C4=27,\"bonne réponse\",\"mauvaise réponse\")","v":"mauvaise réponse"}]
["Question 3",null,0,{"$f":"IF(C5=6,\"bonne réponse\",\"mauvaise réponse\")","v":"mauvaise réponse"}]
["Question 4/a",null,0,{"$f":"IF(C6=575,\"bonne réponse\",\"mauvaise réponse\")","v":"mauvaise réponse"}]
["Question 4/b",null,0,{"$f":"IF(C7=208,\"bonne réponse\",\"mauvaise réponse\")","v":"mauvaise réponse"}]
["Question 4/c",null,0,{"$f":"IF(C8=210,\"bonne réponse\",\"mauvaise réponse\")","v":"mauvaise réponse"}]
["Question 5/a",null,0,{"$f":"IF(C9=76.8,\"bonne réponse\",\"mauvaise réponse\")","v":"mauvaise réponse"}]
["Question 5/b",null,0,{"$f":"IF(C10=168.3,\"bonne réponse\",\"mauvaise réponse\")","v":"mauvaise réponse"}]
["Question 5/c",null,0,{"$f":"IF(C11=45,\"bonne réponse\",\"mauvaise réponse\")","v":"mauvaise réponse"}]

{"sheet":"Aide5","index":10,"n_rows":0,"n_cols":0,"rows_kept":0,"cut":false,"hidden":false,"merged":[]}

{"sheet":"Fiche3 - Niv2","index":11,"n_rows":10,"n_cols":4,"rows_kept":10,"cut":false,"hidden":false,"merged":[[0,1,1,1],[0,2,1,2]]}
[null,"Mes réponses","Vos réponses"]
[]
["Question 1",null,{"$f":"B3","v":0},{"$f":"IF(C3=FALSE,\"bonne réponse\",\"mauvaise réponse\")","v":"mauvaise réponse"}]
["Question 2a",null,0,{"$f":"IF(C4=5,\"bonne réponse\",\"mauvaise réponse\")","v":"mauvaise réponse"}]
["Question 2b",null,0,{"$f":"IF(C5=15,\"bonne réponse\",\"mauvaise réponse\")","v":"mauvaise réponse"}]
["Question 2c",null,0,{"$f":"IF(C6=4,\"bonne réponse\",\"mauvaise réponse\")","v":"mauvaise réponse"}]
["Question 3a",null,0,{"$f":"IF(C7=2.3,\"bonne réponse\",\"mauvaise réponse\")","v":"mauvaise réponse"}]
["Question 3b",null,0,{"$f":"IF(C8=19,\"bonne réponse\",\"mauvaise réponse\")","v":"mauvaise réponse"}]
["Question 3c",null,0,{"$f":"IF(C9=4.5,\"bonne réponse\",\"mauvaise réponse\")","v":"mauvaise réponse"}]
["Question 4",null,0,{"$f":"IF(C10=45,\"bonne réponse\",\"mauvaise réponse\")","v":"mauvaise réponse"}]

{"sheet":"Aide6","index":12,"n_rows":0,"n_cols":0,"rows_kept":0,"cut":false,"hidden":false,"merged":[]}

{"sheet":"Fiche1 - Niv3","index":13,"n_rows":4,"n_cols":4,"rows_kept":4,"cut":false,"hidden":false,"merged":[[0,1,1,1],[0,2,1,2]]}
[null,"Mes réponses","Vos réponses"]
[]
["Question 1",null,{"$f":"B3","v":0},{"$f":"IF(C3=75,\"bonne réponse\",\"mauvaise réponse\")","v":"mauvaise réponse"}]
["Question 2",null,0,{"$f":"IF(C4=\"OUI\",\"bonne réponse\",\"mauvaise réponse\")","v":"mauvaise réponse"}]

{"sheet":"Aide7","index":14,"n_rows":0,"n_cols":0,"rows_kept":0,"cut":false,"hidden":false,"merged":[]}

{"sheet":"Fiche2-Niv3","index":15,"n_rows":5,"n_cols":4,"rows_kept":5,"cut":false,"hidden":false,"merged":[[0,1,1,1],[0,2,1,2]]}
[null,"Mes réponses","Vos réponses"]
[]
["Question 1",null,{"$f":"B3","v":0},{"$f":"IF(C3=FALSE,\"bonne réponse\",\"mauvaise réponse\")","v":"mauvaise réponse"}]
["Question 2",null,0,{"$f":"IF(C4=TRUE,\"bonne réponse\",\"mauvaise réponse\")","v":"mauvaise réponse"}]
["Question 3",null,0,{"$f":"IF(C5=TRUE,\"bonne réponse\",\"mauvaise réponse\")","v":"mauvaise réponse"}]

{"sheet":"Aide8","index":16,"n_rows":0,"n_cols":0,"rows_kept":0,"cut":false,"hidden":false,"merged":[]}

{"sheet":"Fiche3 - Niv3","index":17,"n_rows":12,"n_cols":4,"rows_kept":12,"cut":false,"hidden":false,"merged":[[0,1,1,1],[0,2,1,2]]}
[null,"Mes réponses","Vos réponses"]
[]
["Question 1",null,{"$f":"B3","v":0},{"$f":"IF(C3=3,\"bonne réponse\",\"mauvaise réponse\")","v":"mauvaise réponse"}]
["Question 2",null,{"$f":"B4","v":0},{"$f":"IF(C4=3,\"bonne réponse\",\"mauvaise réponse\")","v":"mauvaise réponse"}]
["Question 3",null,0,"mauvaise réponse"]
["Question 4",null,0,"mauvaise réponse"]
["Question 5",null,0,"mauvaise réponse"]
["Question 6",null,0,"mauvaise réponse"]
["Question 7",null,0,"mauvaise réponse"]
["Question 8",null,0,"mauvaise réponse"]
["Question 9",null,0,"mauvaise réponse"]
["Question 10",null,0,"mauvaise réponse"]

{"sheet":"Aide9","index":18,"n_rows":0,"n_cols":0,"rows_kept":0,"cut":false,"hidden":false,"merged":[]}

{"sheet":"FLASH","index":19,"n_rows":12,"n_cols":4,"rows_kept":12,"cut":false,"hidden":false,"merged":[[2,1,3,1],[2,2,3,2]]}
[]
[]
[null,"Mes réponses","Vos réponses"]
[]
["Question 1",null,{"$f":"B5","v":0},{"$f":"IF(C5=35,\"bonne réponse\",\"mauvaise réponse\")","v":"mauvaise réponse"}]
["Question 2",null,0,{"$f":"IF(C6=325,\"bonne réponse\",\"mauvaise réponse\")","v":"mauvaise réponse"}]
["Question 3",null,0,{"$f":"IF(C7=500,\"bonne réponse\",\"mauvaise réponse\")","v":"mauvaise réponse"}]
["Question 4",null,0,{"$f":"IF(C8=150,\"bonne réponse\",\"mauvaise réponse\")","v":"mauvaise réponse"}]
["Question 5",null,0,{"$f":"IF(C9=450,\"bonne réponse\",\"mauvaise réponse\")","v":"mauvaise réponse"}]
["Question 6",null,0,{"$f":"IF(C10=600,\"bonne réponse\",\"mauvaise réponse\")","v":"mauvaise réponse"}]
["Question 7",null,0,{"$f":"IF(C11=720,\"bonne réponse\",\"mauvaise réponse\")","v":"mauvaise réponse"}]
["Question 8",null,0,{"$f":"IF(C12=1500,\"bonne réponse\",\"mauvaise réponse\")","v":"mauvaise réponse"}]